Cogmind - Beta 10.2 @@@ ROGUE MODE // 2022.02.03 @ 02:39:21 Player: Sid Pariah Result: Destroyed by D-53 Grenadier with Mini Grenade Launcher Performance ------------- Evolutions (0) 0 Regions Visited (2) 400 Robots Destroyed (3) 15 Value Destroyed (54) 54 Prototype IDs (0) 0 Alien Tech Used (0) 0 Bonus (-146) -146 TOTAL SCORE: 323 Bonus ------- Follower Combat Kills 7 Friendly Fire -153 Cogmind --------- Core Integrity 0/250 Matter 63/300 Energy 99/100 System Corruption 0% Temperature Cool (0) Movement Core (100) Ox1 Location -10/Mines Parts ------- > --- POWER (1) -------- (None) > --- PROPULSION (2) --- (None) > --- UTILITY (2) ------ Small Storage Unit > --- WEAPON (2) ------- (None) > --- INVENTORY (6) ---- Aluminum Leg Aluminum Leg Compact Wheel Assault Rifle Assault Rifle Peak State ------------ > --- POWER ------------ Light Ion Engine > --- PROPULSION ------- Light Treads Light Treads > --- UTILITY ---------- Small Storage Unit Medium Matter Pod > --- WEAPON ----------- Grenade Launcher Grenade Launcher > --- INVENTORY -------- Aluminum Leg Aluminum Leg Compact Wheel Assault Rifle Assault Rifle [Rating: 7] Favorites ----------- Power Light Ion Engine Engine Light Ion Engine Propulsion Light Treads Treads Light Treads Leg Aluminum Leg Wheel Compact Wheel Utility Small Storage Unit Storage Small Storage Unit Weapon Grenade Launcher Ballistic Gun Assault Rifle Launcher Grenade Launcher Build | -11 -10 -10 ------- Run | Scr Mat Min Slots Evolved . | . . . Power . | . . . Propulsion . | . . . Utility . | . . . Weapon . | . . . Parts Attached 11 | 8 3 . Power 1 | 1 . . Engine 1 | 1 . . Core . | . . . Reactor . | . . . Propulsion 4 | 4 . . Treads 2 | 2 . . Leg 1 | 1 . . Wheel 1 | 1 . . Hover . | . . . Flight . | . . . Utility 2 | 1 1 . Device . | . . . Storage 2 | 1 1 . Processor . | . . . Hackware . | . . . Protection . | . . . Artifact . | . . . Weapon 4 | 2 2 . Energy Gun . | . . . Energy Cannon . | . . . Ballistic Gun 2 | 2 . . Ballistic Cannon . | . . . Launcher 2 | . 2 . Special Weapon . | . . . Impact Weapon . | . . . Slashing Weapon . | . . . Piercing Weapon . | . . . Special Melee Weapon . | . . . Unidentified Prototypes . | . . . Parts Lost 6 | . . 6 Power 1 | . . 1 Propulsion 2 | . . 2 Utility 1 | . . 1 Weapon 2 | . . 2 Highest Loss Streak 6 | . . 6 Average Slot Usage (%) 91 | . 86 94 Engine 13 | . 14 13 Treads 26 | . 28 25 Storage 23 | . 15 27 Ballistic Gun 4 | . 14 . Launcher 22 | . 14 26 Naked Turns . | . . . Heaviest Build 15 | 11 15 15 Greatest Support 40 | 40 40 40 Greatest Overweight (x) 3 | 3 . 1 Average Overweight (x) . | 1 . . Largest Inventory Capacity 6 | 6 6 6 Average Capacity 5 | 5 6 6 Most Carried 6 | 6 6 5 Average Carried 5 | 5 5 5 Final Capacity 6 | 6 6 6 Final Carried 6 | 6 5 5 Class Distribution -------------------- 100% | Mutant Dominant Class ---------------- Mutant | -10/Materials Mutant | -10/Mines Resources | -11 -10 -10 ----------- Run | Scr Mat Min Matter Collected 283 | 237 . 46 Remotely . | . . . Salvage Created 69 | . . 69 Parts 2 | . . 2 Haulers Intercepted . | . . . Recyclers Shooed . | . . . Parts Field Recycled . | . . . Retrieved Matter . | . . . Parts Self-Destructed . | . . . Prevented . | . . . Kills | -11 -10 -10 ------- Run | Scr Mat Min Combat Hostiles Destroyed 20 | . . 20 AOE 20 | . . 20 Classes Destroyed 3 | . . 3 Swarmer 2 | . . 2 Grunt 1 | . . 1 Assembled 17 | . . 17 Best Kill Streak 17 | . . 17 Combat Bots Only 17 | . . 17 Max Kills in Single Turn 4 | . . 4 Gunslinging . | . . . Exploded 4 | . . 4 Melee . | . . . Uniques/NPCs Destroyed . | . . . Combat | -11 -10 -10 -------- Run | Scr Mat Min Damage Taken 777 | . 11 766 Core 284 | . . 284 Absorbed by Shields . | . . . Core Remaining (%) 100 | 100 . . Volleys Fired 12 | . . 12 Largest 2 | . . 2 Hottest 60 | . . 60 Shots Fired 24 | . . 24 Gun . | . . . Cannon . | . . . Launcher 24 | . . 24 Special . | . . . Kinetic . | . . . Thermal . | . . . Explosive 24 | . . 24 Electromagnetic . | . . . Robot Hit Streak 2 | . . 2 Robot Miss Streak 1 | . . 1 Penetration Max . | . . . Secondary Targets . | . . . Shots Hit Robots 4 | . . 4 Core Hits 52 | . . 52 Critical Hits . | . . . Critical Kills . | . . . Critical Parts Destroyed . | . . . Melee Attacks . | . . . Impact . | . . . Slashing . | . . . Piercing . | . . . Sneak Attacks . | . . . Combat Hostiles . | . . . Follow-up Attacks . | . . . Damage Inflicted 1591 | . . 1591 Guns . | . . . Cannons . | . . . Explosions 1591 | . . 1591 Melee . | . . . Ramming . | . . . Kinetic . | . . . Thermal . | . . . Explosive 1591 | . . 1591 Electromagnetic . | . . . Impact . | . . . Slashing . | . . . Piercing . | . . . Highest Corruption . | . . . Average Corruption . | . . . Corruption Purged . | . . . Overload Shots . | . . . Overflow Damage 24 | . . 24 Projectiles . | . . . Explosions 24 | . . 24 Melee . | . . . Knockbacks . | . . . Impact . | . . . Kinetic . | . . . Secondary . | . . . Self-Inflicted Damage 48 | . . 48 Shots 2 | . . 2 Rammed . | . . . Targets Rammed . | . . . Kicked . | . . . Crushed . | . . . Highest Temperature 33 | . . 33 Average Temperature 23 | . . 23 Received Heat Transfer 78 | . 6 72 Siege Activations . | . . . Robots Corrupted . | . . . Combat Hostiles . | . . . Parts Fried . | . . . Impact Corruptions . | . . . Robots Melted . | . . . Combat Hostiles . | . . . Parts Melted . | . . . Heat Transferred . | . . . Parts Sabotaged . | . . . Parts Stolen . | . . . Parts Stripped . | . . . Power Chain Reactions . | . . . Missiles Intercepted . | . . . Alert | -11 -10 -10 ------- Run | Scr Mat Min Peak Influence 131 | . 19 131 Initial 7 | . . 7 Average 49 | . 3 85 Maximum Alert Level . | . . . Low Security (%) 100 | 100 100 100 Level 1 . | . . . Level 2 . | . . . Level 3 . | . . . Level 4 . | . . . Level 5 . | . . . High Security . | . . . Max Security . | . . . Squads Dispatched 3 | . 3 . Investigation 1 | . 1 . Extermination . | . . . Reinforcement 2 | . 2 . Assault . | . . . Garrison . | . . . Intercept . | . . . Construction Impeded . | . . . Haulers Reinforced . | . . . Stealth | -11 -10 -10 --------- Run | Scr Mat Min Distress Signals 1 | . 1 . Communications Jammed . | . . . Distress Signals . | . . . Times Spotted 26 | . 2 24 Peak Tracking Total 11 | . 2 11 Tactical Retreats . | . . . Traps | -11 -10 -10 ------- Run | Scr Mat Min Traps Triggered . | . . . Indirectly . | . . . Trap Hack Attempts . | . . . Triggered . | . . . Disarmed . | . . . Reprogrammed . | . . . Reused . | . . . Traps Extracted . | . . . Installed . | . . . Triggered . | . . . Machines | -11 -10 -10 ---------- Run | Scr Mat Min Machines Disabled . | . . . Max in Single Turn . | . . . Machines Sabotaged . | . . . Garrisons Compromised . | . . . Overloaded Fab Kills . | . . . Fab Network Shutdowns . | . . . Hacking | -11 -10 -10 --------- Run | Scr Mat Min Machines Accessed 1 | . 1 . Terminals 1 | . 1 . Fabricators . | . . . Repair Stations . | . . . Recycling Units . | . . . Scanalyzers . | . . . Garrison Access . | . . . Total Hacks 5 | . 5 . Successful 4 | . 4 . Failed . | . . . Catastrophic . | . . . Database Lockouts 1 | . 1 . Manual . | . . . Terminals 5 | . 5 . Fabricators . | . . . Repair Stations . | . . . Recycling Units . | . . . Scanalyzers . | . . . Garrison Access . | . . . Terminal Hacks 4 | . 4 . Record 4 | . 4 . Fabricator Hacks . | . . . Repair Station Hacks . | . . . Recycling Unit Hacks . | . . . Scanalyzer . | . . . Garrison Access Hacks . | . . . Unauthorized Hacks . | . . . Terminals . | . . . Fabricators . | . . . Repair Stations . | . . . Recycling Units . | . . . Scanalyzers . | . . . Garrison Access . | . . . Data Cores Recovered . | . . . Used . | . . . Hacking Detections 1 | . 1 . Full Trace Events . | . . . Feedback Events . | . . . Feedback Blocked . | . . . Robot Schematics Acquired . | . . . Robots Built . | . . . Matter . | . . . Time . | . . . Total Robot Build Rating . | . . . Part Schematics Acquired . | . . . Parts Built . | . . . Matter . | . . . Time . | . . . Total Part Build Rating . | . . . Parts Repaired . | . . . Time . | . . . Parts Recycled . | . . . Recycled Matter . | . . . Retrieved Matter . | . . . Retrieved Components . | . . . Parts Scanalyzed . | . . . Part Schematics Acquired . | . . . Parts Damaged . | . . . Bothacking | -11 -10 -10 ------------ Run | Scr Mat Min Used RIF Installer . | . . . Robots Hacked . | . . . Non-combat . | . . . Combat . | . . . Robot Hacks Applied . | . . . Relay Couplers Released . | . . . Robots Rewired . | . . . Allies Hacked . | . . . Hacks Repelled . | . . . Allies | -11 -10 -10 -------- Run | Scr Mat Min Total Allies 1 | . . 1 Largest Group 1 | . . 1 Highest-Rated Group 31 | . . 31 Highest-Rated Ally 31 | . . 31 Total Orders . | . . . Ally Attacks 6 | . . 6 Total Damage 126 | . . 126 Kills 3 | . . 3 Allies Corrupted . | . . . Allies Melted . | . . . Intel | -11 -10 -10 ------- Run | Scr Mat Min Robot Analysis Total . | . . . Derelict Logs Recovered . | . . . Drone Launches . | . . . Drone Recoveries . | . . . Exploration | -11 -10 -10 ------------- Run | Scr Mat Min Turns Passed 391 | 86 83 222 Spaces Moved 217 | 52 47 118 Core 50 | 46 . 4 Treads 167 | 6 47 114 Legs . | . . . Wheels . | . . . Hover . | . . . Flight . | . . . Fastest Speed 50 | 50 160 100 Average Speed 152 | 133 160 157 Slowest Speed 200 | 200 160 160 Overloaded Moves . | . . . Propulsion Burnouts . | . . . Robots Hopped . | . . . Cave-ins Triggered . | . . . Exploration Rate (%) 22 | 5 20 43 Regions Visited 2 Branch Regions 1 Pre-discovered Areas 1 | . . 1 Known Exits Taken . | . . . Unknown Exits Taken 2 | 1 1 . Scrap Searched . | . . . Spaces Dug . | . . . Terrain Destroyed 118 | . . 118 Melee . | . . . Projectile . | . . . AOE 118 | . . 118 Terrain Rammed . | . . . Walls Destroyed . | . . . Machines Disabled . | . . . Actions | -11 -10 -10 --------- Run | Scr Mat Min Total 250 | 65 55 130 Wait . | . . . Move 215 | 51 46 118 Hop . | . . . Pick Up 9 | 6 3 . Fast Attach 6 | 6 . . Attach 1 | . 1 . Detach . | . . . Swap 4 | 2 2 . Drop 3 | . 3 . Fire 12 | . . 12 Melee . | . . . Ram . | . . . Kick . | . . . Crush . | . . . Escape Stasis . | . . . Rewire . | . . . Trap . | . . . Miscellaneous . | . . . Route ------- -11/Scrapyard -10/Materials -10/Mines History --------- Turn | Location | Event 3 | -11/Scrapyard | Discovered new exit (range 15) 87 | -11/Scrapyard | Entered Materials 116 | -10/Materials | Central database locked down 148 | -10/Materials | Discovered new exit (range 8) 170 | -10/Materials | Entered Mines 179 | -10/Mines | Met a Derelict bent on vengeance 185 | -10/Mines | Escorted by a lone wolf Derelict 205 | -10/Mines | Learned location of Storage (-8) 300 | -10/Mines | Build established: Mutant 329 | -10/Mines | Assembled infested the area 380 | -10/Mines | Destroyed 17 combat bots 386 | -10/Mines | Core integrity fell below 50% 391 | -10/Mines | Core integrity fell below 20% 392 | -10/Mines | Destroyed by D-53 Grenadier with Mini Grenade Launcher Last Messages --------------- [Achievement: Exterminator] The achievement interface (ESC then open Records) offers an effective way to explore all of your earned achievements as well as seek out new goals for future runs. Important note for Steam players: Cogmind player global achievement rates displayed by Steam are all significantly underreported, in some cases by a huge margin, due to how they are calculated by Valve. 00355_ The unstable cave ceiling collapses. 00359_ as-88868 destroyed. 00359_ as-94205 destroyed. 00361_ The unstable cave ceiling collapses. 00364_ Lgt. Treads destroyed. 00367_ The unstable cave ceiling collapses. 00375_ Grenade Launcher destroyed. 00381_ C-30 ARC bursts open, deploying its payload. 00381_ D-53 Grenadier unfolds itself. 00381_ Grenade Launcher destroyed. 00383_ Lgt. Ion Engine destroyed. 00387_ Lgt. Treads destroyed. 00387_ Med. Matter Pod destroyed. Map ----- +----------------------------------------------------+ | | | | | | | | | ?????????????????????????????????????????????????? | | ?????????????????????????????????????????????????? | | ?????????????????????????????????????????????????? | | ?????????????????????????????????????????????????? | | ?????????????????????????????????????????????????? | | ?????????????????????????????????????????????????? | | ?????????????????????????????????????????????????? | | ???????????????????????????????####??????????????? | | ?????????????????###??????????## ##?????????????? | | ?????????????????? ???####### #?????????????? | | ??????????????????? ???? #?????????????? | | ???????????????????# ?### #??????????????? | | ???????????????????# ?# ##?????????????? | | ???????????????????# ## d% #?????????????? | | ?????????????#####?# d ##?????????????? | | ???????????### # ####??????????? | | ?????????? #??????????? | | ?????????????# %s% #??????????? | | ?????????????#### % ##?????????# | | ????????????????## % #???????? % | | ?????????????????# # # #?????? | | ?????????????????# @ ## ###?? # | | ?????????????????# # ##??# # | | ?????????????????## #???# # | | ??????????????????# ? #???## % | | ??????????????????# #????### # | | ????????????????? ?#??????## # # | | ???????????????t ????????# | | ??????????????### ## ????????# ### # # # | | ????????????????# ?## ???????###?# ##?##?? | | ????????????????# ???#### ???????????# ##????? | | ????????????????# ???????####?????????## ##???? | | ????????????????## ????????????????????## ####? | | ?????????????????#????????????????????## ## | | ?????????????????????????????????????## | | ?????????????????????????????? ####### | | ?????????????????????????????# | | ?????????????????????????????? ## | | ???????????????????????????????######## ### | | ??????????????????????????????????????## ##? | | ???????????????????????????????????????## ## | | ????????????????????????????????????????## # | | ?????????????????????????????????????????### | | ??????????????????????########?????????????## | | ??????????????????????# #???????####???## | | ??????????????????????# #### #??????## ###??# # | +----------------------------------------------------+ Best States ------------- Heat Dissipation 25 Energy Generation 10 Energy Capacity 125 Matter Stores 257 Matter Capacity 400 Sight Range 16 Terrain Scan Density 10 Evasion (%) 50 Recoil Reduction 2 Item Schematics ----------------- None Robot Schematics ------------------ None Fabricated ------------ Nothing Alien Tech Used ----------------- None Achievements -------------- Exterminator Challenges ------------ None Game ------ Seed ChargeSkeletonConverter Manual? 0 Play Time 00:09:48 Cumulative 14.1 hours Start 2022.02.03 @ 02:28:59 End 2022.02.03 @ 02:39:21 Sessions 1 Manual Loads 0 Difficulty Rogue Special Mode None Game No. 19 Rogue 19 Adventurer 0 Explorer 0 Win Type - Total 0 Types 0/0/0/0/0/0/0/0/0 Lore% 18 Gallery% 20 Achievement% 17 Wizard Run 0 Options --------- ASCII 0 Keyboard 0 Movement Mouse Keybinds 0 Fullscreen 2 Font 18/SmallcapsGlow Map View 76x50 Tactical HUD 1 Map Filters NONE Filters NONE Steam 1 RUN: 2ef60b25-c7e6-4c59-b444-f02c67adaafd